bitfinex-derivatives/quotes_BNBF0:USTF0_20250521
["timestamp","ask_amount","ask_price","bid_price","bid_amount"]
[1747819115784,3.80905106,651.49,650.29,1.7968488]
[1747819116084,3.80905106,651.49,650.3,0.62227615]
[1747819116282,3.80905106,651.49,650.31,1.7968488]
[1747819116479,3.80905106,651.49,650.32,0.62227615]
[1747819116679,3.80905106,651.49,650.33,0.62227615]
[1747819116980,3.80905106,651.49,650.31,0.57769162]
[1747819117182,3.80905106,651.49,650.32,0.62221404]
[1747819117383,3.80905106,651.49,650.31,0.57769162]
[1747819117986,3.80905106,651.49,650.14,0.61072237]
[1747819118186,3.80905106,651.49,650.15,0.62219809]
[1747819118381,3.80905106,651.49,650.16,0.62219809]
[1747819118587,3.80905106,651.49,650.17,0.62218377]
[1747819118886,3.80905106,651.49,650.18,1.79763148]
[1747819119088,3.80905106,651.49,650.19,0.62218377]
[1747819119289,3.80905106,651.49,650.2,0.62218377]
[1747819119588,3.80905106,651.49,650.21,1.17544771]
[1747819119786,3.80905106,651.49,650.22,0.62218377]
[1747819119982,3.80905106,651.49,650.23,1.79763148]
[1747819120289,3.80905106,651.49,650.24,1.19988685]
[1747819120483,3.80905106,651.49,650.25,0.62219523]
[1747819120785,3.80905106,651.49,650.26,0.62219523]
[1747819120982,3.80905106,651.49,650.27,0.62219523]
[1747819121187,3.80905106,651.49,650.28,0.62219523]
[1747819121387,3.80905106,651.49,650.29,1.79764294]
[1747819121583,3.80905106,651.49,650.24,0.57769162]
[1747819121584,3.80905106,651.49,650.3,1.79764294]
[1747819121788,3.80905106,651.49,650.31,0.62219523]
[1747819122087,3.80905106,651.49,650.32,0.6221859]
[1747819122289,3.80905106,651.49,650.33,0.6221859]
[1747819122584,3.80905106,651.49,650.34,0.62220404]
[1747819122789,3.80905106,651.49,650.35,0.62220404]
[1747819122989,3.80905106,651.49,650.36,0.62220404]
[1747819123289,3.80905106,651.49,650.37,2.37537715]
[1747819123491,3.80905106,651.49,650.38,0.62220404]
[1747819123687,3.80905106,651.49,650.39,0.62220404]
[1747819123886,3.80905106,651.49,650.4,0.62220404]
[1747819124089,3.80905106,651.49,650.37,0.57769162]
[1747819124291,3.80905106,651.49,650.38,0.62224588]
[1747819124591,3.80905106,651.49,650.39,0.62224588]
[1747819125192,3.80905106,651.66,650.4,0.62224588]
[1747819126392,3.80905106,651.66,650.41,0.57769162]
[1747819126588,3.80905106,651.66,650.42,0.62224588]
[1747819127090,3.80905106,651.66,650.41,0.57769162]
[1747819127288,3.80905106,651.66,650.42,0.62240758]
[1747819127493,3.80905106,651.66,650.41,0.57769162]
[1747819127690,3.80905106,651.66,650.42,0.6224324]
[1747819127892,3.80905106,651.66,650.43,0.6224324]
[1747819128093,3.80905106,651.66,650.44,0.62246365]
[1747819128294,3.80905106,651.66,650.44,0.57769162]
[1747819129398,3.80905106,651.66,650.26,0.61072237]
[1747819129597,1.305,651.65,650.27,0.62256064]
[1747819129898,1.305,651.65,650.28,1.79910127]
[1747819130197,1.305,651.65,650.29,1.79910127]
[1747819130492,1.305,651.65,650.3,0.62256064]
[1747819130893,1.305,651.65,650.31,1.17654063]
[1747819131098,1.305,651.65,650.32,0.62256064]
[1747819131299,1.305,651.65,650.33,1.17654063]
[1747819131599,1.305,651.65,650.34,0.62256064]
[1747819131801,1.305,651.65,650.35,1.17654063]
[1747819131999,1.305,651.65,650.36,0.62256064]
[1747819132299,1.305,651.65,650.3,0.57769162]
[1747819132498,1.305,651.65,650.31,0.62273809]
[1747819132693,1.305,651.65,650.3,0.57769162]
[1747819132694,1.305,651.65,650.32,1.79989076]
[1747819132897,1.305,651.65,650.33,0.62273809]
[1747819133092,1.305,651.65,650.34,1.17715267]
[1747819133298,1.305,651.65,650.35,0.62273809]
[1747819133594,1.305,651.65,650.36,1.17715267]
[1747819133795,1.305,651.65,650.36,1.75484429]
[1747819134100,1.305,651.65,650.37,0.62277749]
[1747819134398,1.305,651.65,650.36,0.57769162]
[1747819134597,1.305,651.65,650.37,0.62278738]
[1747819134799,1.305,651.65,650.36,0.57769162]
[1747819134998,1.305,651.65,650.38,0.57769162]
[1747819136299,1.305,651.65,650.14,0.57769162]
[1747819136498,1.305,651.65,650.15,0.62283439]
[1747819136794,1.305,651.65,650.16,1.80020568]
[1747819136999,1.305,651.65,650.17,0.62283439]
[1747819137299,1.305,651.65,650.18,0.57769162]
[1747819137598,1.305,651.65,650.19,0.62283439]
[1747819137798,1.305,651.65,650.2,1.17737129]
[1747819137998,1.305,651.65,650.21,0.62283439]
[1747819138205,0.26732936,651.64,650.21,0.62283439]
[1747819138398,0.26732936,651.64,650.22,1.17737129]
[1747819138598,0.26732936,651.64,650.23,0.62288797]
[1747819138893,0.26732936,651.64,650.24,1.80025926]
[1747819139094,0.26732936,651.64,650.25,0.62288797]
[1747819139294,0.26732936,651.64,650.26,1.17724705]
[1747819139495,0.26732936,651.64,650.27,0.62288797]
[1747819139698,0.26732936,651.64,650.28,1.17724705]
[1747819139899,0.26732936,651.64,650.29,0.62288797]
[1747819140198,0.26732936,651.64,650.29,1.20057959]
[1747819140398,1.305,651.65,650.3,0.62288797]
[1747819140594,1.305,651.65,650.31,1.17724705]
[1747819140798,1.305,651.65,650.32,0.62292649]
[1747819140998,1.305,651.65,650.33,0.62292649]
[1747819141195,0.26731704,651.64,650.34,0.62292649]
[1747819141394,0.26731704,651.64,650.34,1.17724705]
[1747819141593,0.26731704,651.64,650.35,0.62292682]
[1747819141798,0.26731704,651.64,650.33,0.57769162]
[1747819142197,0.26731704,651.64,650.34,1.80022101]
[1747819142397,0.26731704,651.64,650.35,1.20066558]
[1747819142698,0.26731704,651.64,650.35,0.57769162]
[1747819143298,0.26731704,651.64,650.36,0.62309496]
[1747819143499,1.305,651.65,650.35,0.57769162]
[1747819143692,0.26731293,651.63,650.36,0.62309442]
[1747819143892,0.26731293,651.63,650.15,0.61072237]
[1747819144097,0.26731293,651.63,650.16,1.80067512]
[1747819144295,0.26731293,651.63,650.17,0.62309503]
[1747819144498,0.26731293,651.63,650.18,1.80067512]
[1747819144699,0.26731293,651.63,650.19,0.62309503]
[1747819144901,0.26731293,651.63,650.19,1.80067512]
[1747819145099,0.26731293,651.63,650.2,0.62309503]
[1747819145401,0.26731293,651.63,650.21,1.17758009]
[1747819145601,0.26731293,651.63,650.22,1.20093965]
[1747819145901,0.26731293,651.63,650.23,1.80082812]
[1747819146095,0.26731293,651.63,650.24,0.62324803]
[1747819146300,0.26731293,651.63,650.25,1.17758009]
[1747819146497,1.305,651.65,650.26,0.62324803]
[1747819147104,1.305,651.65,650.27,1.17758009]
[1747819147304,1.305,651.65,650.28,0.62324803]
[1747819147604,1.305,651.65,650.29,1.17758009]
[1747819147805,1.305,651.65,650.3,0.62324803]
[1747819148004,1.305,651.65,650.31,1.17758009]
[1747819148198,1.305,651.65,650.32,0.62324803]
[1747819148604,1.305,651.65,650.33,0.57769162]
[1747819148802,1.305,651.65,650.34,1.80082812]
[1747819149000,1.305,651.65,650.35,0.6235489]
[1747819149201,1.305,651.65,650.36,1.80112899]
[1747819149402,1.305,651.65,650.37,0.6235489]
[1747819149604,1.305,651.65,650.38,1.17758009]
[1747819149806,1.305,651.65,650.39,0.6235489]
[1747819150203,1.305,651.65,650.39,1.20124052]
[1747819150408,1.305,651.65,650.4,0.6235489]
[1747819150710,0.26730472,651.64,650.39,0.57769162]
[1747819150907,0.26730472,651.64,650.4,0.62338769]
[1747819151208,0.26730472,651.64,650.12,0.26730472]
[1747819151410,0.26730472,651.64,650.13,0.62339926]
[1747819151602,0.26730472,651.64,650.14,0.62339926]
[1747819151907,0.26730472,651.64,650.15,1.80190536]
[1747819152108,0.26730472,651.64,650.16,0.62339926]
[1747819152303,0.26730472,651.64,650.17,0.62339926]
[1747819152503,0.26730472,651.64,650.14,0.60111144]
[1747819152708,0.2670688,651.63,650.19,0.62339926]
[1747819152903,0.2670688,651.63,650.18,1.1785061]
[1747819152904,0.2670688,651.63,650.2,1.80190536]
[1747819153109,0.99457368,653.16,650.21,0.62339926]
[1747819153309,0.99457368,653.16,650.22,0.62339926]
[1747819153511,3.81799869,651.88,650.23,1.1785061]
[1747819153810,3.81799869,651.88,650.24,0.62339926]
[1747819154211,3.81799869,651.88,650.25,1.1785061]
[1747819154412,3.81799869,651.88,650.26,0.62339926]
[1747819154607,3.81799869,651.88,650.27,1.1785061]
[1747819154813,3.81799869,651.88,650.28,0.62339926]
[1747819155313,3.81799869,651.88,650.29,1.1785061]
[1747819155514,3.81799869,651.88,650.3,0.62339926]
[1747819155712,3.81799869,651.88,650.31,1.1785061]
[1747819155912,3.81799869,651.88,650.32,0.62415424]
[1747819156111,3.81799869,651.88,650.33,0.62415424]
[1747819156412,3.81799869,651.88,650.34,0.62415424]
[1747819156611,3.81799869,651.88,650.35,0.62415424]
[1747819156812,3.81799869,651.88,650.33,0.60111144]
[1747819158516,3.81799869,651.88,650.13,0.60111144]
[1747819159711,3.81799869,651.88,650.1,0.6411058]
[1747819159915,3.81799869,651.88,649.86,0.60111144]
[1747819160112,3.81799869,651.88,649.87,1.79765298]
[1747819160316,3.81799869,651.88,649.88,0.61829266]
[1747819160512,3.81799869,651.88,649.89,1.17936032]
[1747819160818,3.81799869,651.88,649.9,0.61829266]
[1747819161018,3.81799869,651.88,649.91,1.79731839]
[1747819161219,3.81799869,651.88,649.92,0.61795807]
[1747819161621,3.81799869,651.88,649.93,1.17936032]
[1747819161820,3.81799869,651.88,649.94,0.61795807]
[1747819162021,3.81799869,651.88,649.95,1.79731839]
[1747819162222,3.81799869,651.88,649.96,0.61795807]
[1747819162422,3.81799869,651.88,649.97,0.61795807]
[1747819162722,0.26738276,651.87,649.97,0.60111144]
[1747819163415,0.26738276,651.87,649.98,0.60111144]
[1747819165423,0.26738276,651.87,649.53,0.6411058]
[1747819165723,0.26738276,651.87,649.67,0.26741769]
[1747819165918,0.26738276,651.87,649.68,1.79255233]
[1747819166118,0.26738276,651.87,649.69,0.6167091]
[1747819166320,0.26738276,651.87,649.7,0.6167091]
[1747819166517,0.26738276,651.87,649.71,0.61632246]
[1747819166718,0.26738276,651.87,649.72,0.61632246]
[1747819166922,0.26738276,651.87,649.73,0.61632246]
[1747819167116,0.26738276,651.87,649.74,1.17584323]
[1747819167320,0.26738276,651.87,649.75,0.61632246]
[1747819167516,3.81799869,651.88,649.76,1.17584323]
[1747819167717,3.81799869,651.88,649.77,0.61632246]
[1747819167922,3.81799869,651.88,649.78,0.61632246]
[1747819168118,3.81799869,651.88,649.79,1.79216569]
[1747819168323,3.81799869,651.88,649.8,1.79216569]
[1747819168518,3.81799869,651.88,649.81,0.61632246]
[1747819168824,3.81799869,651.82,649.82,1.79216569]
[1747819169025,3.81799869,651.82,649.83,0.61632246]
[1747819169225,3.81799869,651.82,649.84,0.61632246]
[1747819169425,3.81799869,651.82,649.85,0.61632246]
[1747819169725,3.81799869,651.82,649.86,1.79216569]
[1747819169925,3.81799869,651.82,649.87,1.21490489]
[1747819170125,3.81799869,651.82,649.87,1.77442566]
[1747819170522,3.81799869,651.82,649.88,1.17584323]
[1747819170726,0.26742283,651.81,649.88,1.17584323]
[1747819170925,0.26742283,651.81,649.89,1.17584323]
[1747819171223,0.26742283,651.81,649.9,0.61547201]
[1747819171426,0.26742283,651.81,649.91,0.61547201]
[1747819171627,0.26742283,651.81,649.92,0.61547201]
[1747819171927,0.26742283,651.81,649.93,1.79131524]
[1747819172225,0.26742283,651.81,649.94,1.79131524]
[1747819172424,0.26742283,651.81,649.95,0.61547201]
[1747819172624,0.26742283,651.81,649.96,1.17584323]
[1747819173026,0.26742283,651.81,649.97,1.17584323]
[1747819173423,3.81799869,652.12,649.98,0.59858243]
[1747819173622,3.81799869,652.12,649.99,1.17584323]
[1747819173829,0.26736119,651.8,649.99,1.17584323]
[1747819174023,3.81799869,652.12,649.98,0.59858243]
[1747819174723,0.26735811,652.11,649.98,0.59858243]
[1747819174927,0.26735811,652.11,649.99,1.76997459]
[1747819175224,0.26735811,652.11,649.99,0.59858243]
[1747819176122,0.26735811,652.11,650.0,1.76986274]
[1747819176428,3.81799869,652.12,650.01,1.17128031]
[1747819176929,3.81799869,652.12,650.0,0.59858243]
[1747819177624,0.26737043,652.11,650.0,0.59858243]
[1747819177828,0.26737043,652.11,650.01,0.59858243]
[1747819179230,0.26737043,652.11,649.78,0.26735195]
[1747819179430,3.81799869,652.12,649.79,0.61461683]
[1747819179632,1.53,652.1,649.8,0.61461683]
[1747819179833,1.53,652.1,649.81,0.61458848]
[1747819180026,1.53,652.1,649.82,0.61458848]
[1747819180229,1.53,652.1,649.81,1.17074554]
[1747819180426,1.53,652.1,649.82,0.61453606]
[1747819180628,1.53,652.1,649.82,0.5970764]
[1747819180828,0.26740022,652.09,649.83,1.17074554]
[1747819181231,0.26740022,652.09,649.82,0.5970764]
[1747819181232,0.26740022,652.09,649.84,1.17074554]
[1747819181432,0.26740022,652.09,649.85,0.5970764]
[1747819181632,0.26740022,652.09,649.86,1.17074554]
[1747819181829,0.26740022,652.09,649.85,0.5970764]
[1747819181830,0.26740022,652.09,649.87,1.17074554]
[1747819182333,0.26740022,652.09,649.85,0.5970764]
[1747819182533,1.53,652.1,649.85,0.5970764]
[1747819182734,0.26739406,652.08,649.85,0.5970764]
[1747819182935,0.26739406,652.08,649.86,1.17036109]
[1747819183232,5.61259222,652.08,649.86,0.5970764]
[1747819184232,5.61259222,652.08,649.87,1.17028844]
[1747819184532,5.61259222,652.08,649.88,0.5970764]
[1747819184735,5.61259222,652.08,649.89,1.17028844]
[1747819185434,5.34519816,652.08,649.89,1.17028844]
[1747819186435,3.81799869,651.63,649.89,1.17028844]
[1747819186735,3.81799869,651.63,649.77,1.17028844]
[1747819186933,3.81799869,651.63,649.78,0.61443365]
[1747819187131,3.81799869,651.63,649.79,0.61443365]
[1747819187328,3.81799869,651.63,649.8,1.78472209]
[1747819187528,3.81799869,651.63,649.81,0.61443365]
[1747819187835,3.81799869,651.63,649.82,0.59696875]
[1747819188134,3.81799869,651.63,649.83,0.61443365]
[1747819188335,3.81799869,651.63,649.84,0.61443365]
[1747819188532,3.81799869,651.63,649.84,1.17028844]
[1747819188838,3.81799869,651.63,649.83,1.17028844]
[1747819189737,0.26743824,651.62,649.84,0.59696875]
[1747819191335,0.26743824,651.62,649.77,0.59696875]
[1747819191537,3.81799869,651.63,649.78,0.61434014]
[1747819191736,0.26745263,651.61,649.79,0.61433866]
[1747819191938,0.26745263,651.61,649.8,0.61433866]
[1747819192138,0.26745263,651.61,649.81,1.17100119]
[1747819192639,0.26745263,651.61,649.82,0.59696875]
[1747819192839,0.26745263,651.61,649.82,1.76796994]
[1747819193236,0.26745263,651.61,649.83,1.17100119]
[1747819193737,0.26745263,651.61,649.84,0.59696875]
[1747819194439,3.81799869,651.63,649.84,0.59696875]
[1747819194637,0.26745366,651.6,649.85,1.1712584]
[1747819194945,0.26745366,651.6,649.86,1.1712584]
[1747819195345,0.26745366,651.6,649.86,1.76822715]
[1747819195541,0.26745366,651.6,649.86,0.59696875]
[1747819196545,0.26745366,651.6,649.57,0.59696875]
[1747819196741,0.26745366,651.6,649.58,0.61446011]
[1747819196940,0.26745366,651.6,649.57,0.59696875]
[1747819196941,0.26745366,651.6,649.59,0.61446011]
[1747819197145,0.26745366,651.6,649.6,0.61446011]
[1747819197346,0.26745366,651.6,649.61,0.61446011]
[1747819197542,3.81799869,651.63,649.62,1.78789525]
[1747819197845,0.26748655,651.59,649.63,0.61446011]
[1747819198045,0.26748655,651.59,649.64,1.78789525]
[1747819198245,0.26748655,651.59,649.65,0.61446011]
[1747819198441,0.26748655,651.59,649.66,0.61446011]
[1747819198642,0.26748655,651.59,649.67,1.78779344]
[1747819198842,0.26748655,651.59,649.68,0.61435448]
[1747819199042,0.26748655,651.59,649.69,0.61435448]
[1747819199341,0.26748655,651.59,649.7,2.38475837]
[1747819199546,0.26748655,651.59,649.71,0.61435448]
[1747819199743,0.26748655,651.59,649.72,1.78778962]
[1747819199947,0.26748655,651.59,649.73,0.61435448]
[1747819200147,0.26748655,651.59,649.74,1.78778962]
[1747819200348,0.26748655,651.59,649.75,0.61433624]
[1747819200546,3.81799869,651.63,649.76,1.78777138]
[1747819200747,0.26744852,651.58,649.77,0.61433624]
[1747819200945,0.26744852,651.58,649.78,1.78777138]
[1747819201149,0.26744852,651.58,649.79,0.61433624]
[1747819201349,0.26744852,651.58,649.8,0.61433624]
[1747819201650,0.26744852,651.58,649.81,0.61427994]
[1747819201850,0.26744852,651.58,649.82,0.61427994]
[1747819202048,3.81799869,651.67,649.83,0.61427994]
[1747819202249,3.81799869,651.67,649.84,1.17343514]
[1747819202446,3.81799869,651.67,649.85,0.61427994]
[1747819202748,3.81799869,651.67,649.85,1.78771508]
[1747819203046,3.81799869,651.67,649.86,0.61427994]
[1747819203246,0.26743413,651.66,649.86,0.61427994]
[1747819203451,0.26743413,651.66,649.87,1.17343514]
[1747819203651,0.26743413,651.66,649.88,0.61427994]
[1747819203851,0.26743413,651.66,649.89,1.17343514]
[1747819204153,0.26743413,651.66,649.9,0.61427994]
[1747819204453,0.26743413,651.66,649.91,1.17343514]
[1747819204652,0.26743413,651.66,649.92,1.21124869]
[1747819204849,0.26743413,651.66,649.93,0.61427994]
[1747819205050,0.26743413,651.66,649.94,1.17343514]
[1747819205247,0.26743413,651.66,649.95,0.61427994]
[1747819205553,0.26743413,651.66,649.96,1.17343514]
[1747819206053,0.26743413,651.66,649.97,1.17343514]
[1747819206252,0.26743413,651.66,649.97,1.77040389]
[1747819206752,0.26743413,651.66,649.97,0.59696875]
[1747819207349,0.26743413,651.66,649.98,0.59696875]
[1747819208455,0.26743413,651.66,649.99,0.59696875]
[1747819209858,0.26743413,651.66,650.0,0.59696875]
[1747819211756,0.26743413,651.66,650.01,0.59696875]
[1747819212359,1.155,651.69,650.01,0.59696875]
[1747819212665,0.26740536,651.65,650.01,0.59696875]
[1747819212960,0.26740536,651.65,649.74,0.26740536]
[1747819212961,0.26740536,651.65,650.02,0.59696875]
[1747819214560,0.26740536,651.65,650.03,0.59696875]
[1747819215465,1.155,651.69,650.03,0.59696875]
[1747819215661,0.26740331,651.64,650.03,0.59696875]
[1747819216665,0.26740331,651.64,650.04,0.59696875]
[1747819217070,0.26740331,651.64,650.05,0.61695536]
[1747819217268,0.26740331,651.64,650.06,1.79353339]
[1747819217466,0.26740331,651.64,650.07,0.61733272]
[1747819217764,3.81799869,651.22,650.07,1.21430147]
[1747819217971,3.81799869,651.22,650.07,0.59696875]
[1747819218266,3.81799869,651.22,650.08,0.61736571]
[1747819218468,3.81799869,651.22,650.07,0.59696875]
[1747819218662,3.81799869,651.22,650.08,0.59696875]
[1747819220463,3.81799869,651.22,650.09,0.59696875]
[1747819221568,3.81799869,651.22,649.89,0.6411058]
[1747819221569,3.81799869,651.22,650.1,0.59696875]
[1747819223170,3.81799869,651.22,650.11,0.59696875]
[1747819224469,3.81799869,651.22,650.12,0.59696875]
[1747819226271,3.81799869,651.22,650.13,0.59696875]
[1747819227170,3.81799869,651.22,650.14,0.61742223]
[1747819227372,3.81799869,651.22,650.13,0.59696875]
[1747819227566,3.81799869,651.22,650.14,0.61741689]
[1747819227767,3.81799869,651.22,650.14,1.17591511]
[1747819227966,3.81799869,651.22,650.15,0.59696875]
[1747819229873,3.81799869,651.22,650.16,0.59696875]
[1747819231873,3.81799869,651.22,650.17,0.59696875]
[1747819233571,3.81799869,651.22,650.18,0.6174624]
[1747819233775,3.81799869,651.47,650.18,0.59696875]
[1747819233969,3.81799869,651.47,650.19,0.61740574]
[1747819234168,3.81799869,651.47,650.2,0.61740574]
[1747819234373,3.81799869,651.47,650.21,1.7915829]
[1747819234571,3.81799869,651.47,650.22,0.61740574]
[1747819234774,3.81799869,651.47,650.23,1.7915829]
[1747819234973,3.81799869,651.47,650.24,0.61740574]
[1747819235175,3.81799869,651.47,650.25,0.61740574]
[1747819235477,3.81799869,651.47,650.26,1.7915829]
[1747819235675,3.81799869,651.47,650.23,0.59696875]
[1747819235676,3.81799869,651.47,650.27,1.79100487]
[1747819235876,3.81799869,651.47,650.28,0.61682771]
[1747819236075,3.81799869,651.47,650.29,0.61682771]
[1747819236275,3.81799869,651.47,650.3,1.79100487]
[1747819236476,1.393,651.6,650.31,0.61682771]
[1747819236772,1.393,651.6,650.31,1.17417716]
[1747819236978,1.393,651.6,650.32,1.17417716]
[1747819237277,1.393,651.6,650.33,0.59696875]
[1747819237779,0.26732833,651.59,650.33,0.59696875]
[1747819238877,0.26732833,651.59,650.34,0.59696875]
[1747819239477,1.393,651.6,650.34,0.59696875]
[1747819240679,1.393,651.6,650.35,0.59696875]
[1747819240880,0.26732525,651.59,650.35,0.59696875]
[1747819242483,1.393,651.6,649.98,0.6411058]
[1747819242781,1.393,651.6,649.99,1.78584786]
[1747819242983,1.393,651.6,650.0,0.61579622]
[1747819243177,1.393,651.6,650.01,1.78584786]
[1747819243382,1.393,651.6,650.02,0.61579622]
[1747819243580,1.393,651.6,650.03,0.61579622]
[1747819243781,0.26735914,651.59,650.04,0.61579622]
[1747819243980,0.26735914,651.59,650.05,0.61579622]
[1747819244183,0.26735914,651.59,650.06,1.78574413]
[1747819244477,0.26735914,651.59,650.07,1.78574413]
[1747819244683,0.26735914,651.59,650.08,1.78574413]
[1747819244883,0.26735914,651.59,650.09,0.61569249]
[1747819245182,0.26735914,651.59,650.1,0.61569249]
[1747819245383,1.393,651.6,650.11,0.61569249]
[1747819245577,1.393,651.6,650.12,1.78574413]
[1747819245776,1.393,651.6,650.13,0.61569249]
[1747819245979,1.393,651.6,650.14,0.61550777]
[1747819246177,1.393,651.6,650.15,2.37908852]
[1747819246384,1.393,651.6,650.16,0.61550777]
[1747819246578,1.393,651.6,650.17,1.78555941]
[1747819246776,0.26734476,651.59,650.18,1.78555941]
[1747819246983,0.26734476,651.59,650.19,0.61550777]
[1747819247178,0.26734476,651.59,650.2,0.61550777]
[1747819247384,0.26734476,651.59,650.21,1.78555941]
[1747819247686,0.26734476,651.59,650.22,0.61535272]
[1747819247886,0.26734476,651.59,650.15,0.59352911]
[1747819248083,0.26734476,651.59,650.16,1.78440946]
[1747819248281,0.26734476,651.59,650.17,0.61535301]
[1747819248586,1.393,651.6,650.18,1.78440946]
[1747819248780,0.26734271,651.58,650.19,0.61535301]
[1747819248983,0.26734271,651.58,650.2,0.61535301]
[1747819249285,0.26734271,651.58,650.21,1.78440946]
[1747819249479,0.26734271,651.58,650.22,1.78440946]
[1747819249683,0.26734271,651.58,650.23,0.61535301]
[1747819249882,0.26734271,651.58,650.24,1.20888212]
[1747819250183,0.26734271,651.58,650.24,0.59352911]
[1747819251488,1.393,651.6,650.24,0.59352911]
[1747819251688,1.393,651.6,650.06,0.6411058]
[1747819251888,1.393,651.6,650.07,0.61507109]
[1747819252088,1.393,651.6,650.08,0.61507109]
[1747819252290,1.393,651.6,650.09,0.61507109]
[1747819252491,1.393,651.6,650.1,1.78382258]
[1747819252691,1.393,651.6,650.11,2.37735169]
[1747819252891,0.26735092,651.59,650.12,0.61502997]
[1747819253185,0.26735092,651.59,650.13,1.78378146]
[1747819253386,0.26735092,651.59,650.14,0.61502997]
[1747819253586,0.26735092,651.59,650.15,1.78378146]
[1747819253786,0.26735092,651.59,650.16,0.61502997]
[1747819253984,0.26735092,651.59,650.17,0.61502997]
[1747819254191,0.26735092,651.59,650.18,0.61502997]
[1747819254487,1.393,651.6,650.19,0.61502997]
[1747819254691,1.393,651.6,650.2,1.78378146]
[1747819254888,0.26734168,651.58,650.21,0.61502997]
[1747819255184,0.26734168,651.58,650.22,1.78378146]
[1747819255388,0.26734168,651.58,650.23,0.61502997]
[1747819255586,0.26734168,651.58,650.24,1.78378146]
[1747819255789,0.26734168,651.58,650.24,1.16875149]
[1747819256393,0.26734168,651.58,650.25,0.61522832]
[1747819256587,0.26734168,651.58,650.26,0.61522832]
[1747819256787,0.26734168,651.58,650.27,0.61522832]
[1747819256987,0.26734168,651.58,650.28,0.61522915]
[1747819257287,0.26734168,651.58,650.27,0.59352911]
[1747819257590,0.26734168,651.58,650.28,0.61542413]
[1747819257889,0.26734168,651.58,650.27,0.59352911]
[1747819258289,0.26734168,651.58,650.09,0.59352911]
[1747819258492,0.26734168,651.58,650.1,0.61554406]
[1747819258693,0.26734168,651.58,650.11,0.61554406]
[1747819258892,0.26734168,651.58,650.12,1.7871079]
[1747819259093,0.26734168,651.58,650.13,0.61554293]
[1747819259294,0.26734168,651.58,650.14,0.61554293]
[1747819259592,0.26734168,651.58,650.15,1.7871079]
[1747819259788,0.26734168,651.58,650.16,1.20907204]
[1747819259988,0.26734168,651.58,650.17,1.7871079]
[1747819260294,1.77234168,651.58,650.18,0.61554293]
[1747819260493,1.505,651.58,650.18,1.7871079]
[1747819260688,1.505,651.58,650.19,0.61554293]
[1747819260894,1.77234373,651.58,650.19,0.61554293]
[1747819261193,1.77234373,651.58,650.2,1.17156497]
[1747819261492,1.77234373,651.58,650.21,0.61554293]
[1747819261692,1.77234373,651.58,650.21,1.7871079]
[1747819261892,1.77234373,651.58,650.22,0.61554293]
[1747819262091,1.77234373,651.58,650.23,1.17156497]
[1747819262293,1.77234373,651.58,650.24,0.61554293]
[1747819262593,1.77234373,651.58,650.25,0.61562086]
[1747819262795,1.77234373,651.58,650.26,1.78718583]
[1747819262988,1.77234373,651.58,650.27,0.61562086]
[1747819263192,1.77234373,651.58,650.26,1.17156497]
[1747819263389,1.77234373,651.58,650.27,1.78719742]
[1747819263589,1.505,651.58,650.27,1.17156497]
[1747819263890,1.77233552,651.58,650.25,0.59352911]
[1747819264093,1.77233552,651.58,650.26,0.61563395]
[1747819264293,1.77233552,651.58,650.27,1.78646101]
[1747819264492,1.77233552,651.58,650.28,0.59352911]
[1747819265791,1.77233552,651.58,649.98,0.59352911]
[1747819265992,1.77233552,651.58,649.99,1.78677996]
[1747819266194,1.77233552,651.58,650.0,0.61575695]
[1747819266394,1.77233552,651.58,650.01,0.61575695]
[1747819266698,0.26738482,651.57,650.02,1.78677996]
[1747819266897,0.26738482,651.57,650.03,1.20928606]
[1747819267097,0.26738482,651.57,650.04,0.61575695]
[1747819267396,0.26738482,651.57,650.05,1.17102301]
[1747819267597,0.26738482,651.57,650.06,0.61575695]
[1747819267892,0.26738482,651.57,650.07,0.61587091]
[1747819268097,0.26738482,651.57,650.08,0.61587091]
[1747819268393,0.26738482,651.57,650.09,1.20940002]
[1747819268597,0.26738482,651.57,650.1,1.78689392]
[1747819268897,0.26738482,651.57,650.11,0.61587091]
[1747819269098,0.26738482,651.57,650.12,1.17102301]
[1747819269298,0.26738482,651.57,650.13,0.61587091]
[1747819269599,1.505,651.58,650.14,0.59352911]
[1747819269897,1.505,651.58,650.15,1.78689392]
[1747819270094,1.505,651.58,650.16,0.61587091]
[1747819270393,1.505,651.58,650.17,1.17102301]
[1747819270797,0.26736838,651.57,650.17,1.17102301]
[1747819270999,0.26736838,651.57,650.15,1.17102301]
[1747819271198,0.26736838,651.57,650.16,0.61606311]
[1747819271402,0.26736838,651.57,650.17,0.61606311]
[1747819271700,0.26736838,651.57,650.17,1.17102301]
[1747819271895,0.26736838,651.57,650.18,0.6160948]
[1747819272099,0.26736838,651.57,650.16,0.59352911]
[1747819272301,0.26736838,651.57,650.17,0.61611514]
[1747819272502,1.505,651.58,650.18,0.61611514]
[1747819272703,1.505,651.58,649.98,1.23463491]